bitfinex-derivatives/quotes_BNBF0:USTF0_20250509
["timestamp","ask_amount","ask_price","bid_price","bid_amount"]
[1746809606428,0.26638898,633.77,631.67,1.59012597]
[1746809606634,0.26638898,633.77,631.68,1.88048691]
[1746809606933,0.26638898,633.77,631.69,1.88048691]
[1746809607129,0.26638898,633.77,631.7,1.59012597]
[1746809607331,0.26638898,633.77,631.71,1.59012597]
[1746809607535,0.26638898,633.77,631.72,1.58973645]
[1746809607727,0.26638898,633.77,631.73,1.90632739]
[1746809607933,0.31556691,633.78,631.74,1.58973645]
[1746809608129,0.26643024,633.76,631.75,1.58973645]
[1746809608332,0.31562667,633.66,631.76,1.90631236]
[1746809608528,0.31562667,633.66,631.77,1.58973645]
[1746809608730,0.31562667,633.66,631.78,1.58973645]
[1746809608930,0.274913,633.65,631.79,1.58973645]
[1746809609131,0.274913,633.65,631.8,1.58973645]
[1746809609431,0.54134324,633.65,631.81,1.58973645]
[1746809609629,0.26643024,633.64,631.82,1.88009466]
[1746809609854,0.26643024,633.64,631.83,1.58973645]
[1746809610031,0.26643024,633.64,631.84,1.58973645]
[1746809610230,0.26643024,633.64,631.83,0.29035821]
[1746809610231,0.26643024,633.64,631.85,1.88009466]
[1746809610435,0.26643024,633.64,631.86,1.58973645]
[1746809610635,0.26643024,633.64,631.87,1.58973645]
[1746809610936,0.3156466,633.62,631.88,1.88009466]
[1746809611130,0.3156466,633.62,631.89,1.58983537]
[1746809611435,0.26643024,633.61,631.9,1.58983537]
[1746809611636,0.26643024,633.61,631.91,1.58983537]
[1746809611931,0.27491518,633.6,631.92,1.58983537]
[1746809612130,0.27491518,633.6,631.93,1.58983537]
[1746809612331,0.27491518,633.6,631.94,1.58983537]
[1746809612529,0.31566652,633.58,631.95,0.98983956]
[1746809612735,0.26643024,633.57,631.96,1.88018076]
[1746809612932,0.26643024,633.57,631.97,1.58982255]
[1746809613133,0.26643024,633.57,631.98,1.58982255]
[1746809613332,0.26643024,633.57,631.99,1.58982255]
[1746809613534,0.26643024,633.57,632.0,1.88018076]
[1746809613732,0.26643024,633.57,632.01,1.58982255]
[1746809613934,0.26643024,633.57,632.02,1.58982255]
[1746809614137,0.26643024,633.57,632.03,1.88018076]
[1746809614330,0.26643024,633.57,632.04,1.58982255]
[1746809614531,0.31566652,633.58,632.05,1.58982255]
[1746809614830,0.31566652,633.58,632.06,1.58982255]
[1746809615033,0.31566652,633.58,632.07,1.58982255]
[1746809615233,0.31566652,633.58,632.08,1.58947662]
[1746809615436,0.31566652,633.58,632.09,1.87977726]
[1746809615636,0.31566652,633.58,632.1,1.58947662]
[1746809615832,0.31566652,633.58,632.11,1.58947662]
[1746809616035,0.31566652,633.58,632.12,1.58947662]
[1746809616236,0.31566652,633.58,632.13,1.58947662]
[1746809616433,0.31566652,633.58,632.14,1.58947662]
[1746809616638,0.85866652,633.58,632.15,1.58919172]
[1746809616836,0.85866652,633.58,632.16,1.58919172]
[1746809617036,0.85866652,633.58,632.17,1.58919172]
[1746809617237,0.85866652,633.58,632.18,1.58919172]
[1746809617535,0.85866652,633.58,632.19,1.8795042]
[1746809617734,0.85866652,633.58,632.2,1.58919172]
[1746809617936,0.85866652,633.58,632.21,1.58919172]
[1746809618139,0.85866652,633.58,632.22,1.8795042]
[1746809618335,0.85866652,633.58,632.23,1.58919172]
[1746809618540,0.85866652,633.58,632.24,1.58919172]
[1746809618741,0.26665256,633.57,632.25,1.8795043]
[1746809618938,0.26665256,633.57,632.26,1.58919172]
[1746809619139,0.26665256,633.57,632.27,1.58919172]
[1746809619340,0.26665256,633.57,632.28,1.8795043]
[1746809619545,0.31568147,633.55,632.29,1.58919172]
[1746809619738,0.31568147,633.55,632.3,1.58919172]
[1746809619935,0.31568147,633.55,632.31,1.8789545]
[1746809620140,0.31568147,633.55,632.32,1.58864192]
[1746809620442,0.31568147,633.55,632.33,1.58864192]
[1746809620639,0.31568147,633.55,632.34,1.8789545]
[1746809620839,0.31568147,633.55,632.35,1.58864192]
[1746809621037,0.31568147,633.55,632.36,1.58864192]
[1746809621241,0.31568147,633.55,632.37,1.58864192]
[1746809621438,0.31568147,633.55,632.38,1.58864192]
[1746809621640,0.31568147,633.55,632.39,1.8789545]
[1746809621941,0.31568147,633.55,632.4,1.58864192]
[1746809622143,0.31568147,633.55,632.41,1.58864192]
[1746809622344,0.31568147,633.55,632.42,1.58864192]
[1746809622645,0.31568147,633.55,632.43,1.58864192]
[1746809622944,0.26647748,633.54,631.96,0.27487283]
[1746809623142,0.26647748,633.54,631.97,1.58895515]
[1746809623342,0.26647748,633.54,631.98,1.5886678]
[1746809623541,0.26647748,633.54,631.99,1.5886678]
[1746809623839,0.26647748,633.54,632.0,1.5886678]
[1746809624041,0.27498469,633.53,632.01,1.5886678]
[1746809624241,0.27498469,633.53,632.02,1.5886678]
[1746809624449,0.26647748,633.52,632.03,1.5886678]
[1746809624647,0.31570639,633.5,632.04,1.5886678]
[1746809624847,0.31570639,633.5,632.05,1.5886678]
[1746809625048,0.31570639,633.5,632.06,1.5886678]
[1746809625253,0.31570639,633.5,632.07,1.5886678]
[1746809625454,0.31570639,633.5,632.08,1.5886678]
[1746809625647,0.31570639,633.5,632.09,1.5886678]
[1746809625848,0.31570639,633.5,632.1,1.5886678]
[1746809626155,0.31570639,633.5,632.11,1.5886678]
[1746809626353,0.26651904,633.49,632.12,1.58935638]
[1746809626554,0.31572134,633.47,632.13,1.58935638]
[1746809626853,0.31572134,633.47,632.14,1.58935638]
[1746809627053,0.26651904,633.46,632.15,1.58935638]
[1746809627254,0.31573629,633.44,632.16,1.58935638]
[1746809627449,0.31573629,633.44,632.17,1.58935638]
[1746809627652,0.31573629,633.44,632.18,1.58935638]
[1746809627854,0.2664754,633.43,632.19,1.58935638]
[1746809628051,0.2664754,633.43,632.2,1.58935638]
[1746809628252,0.31575125,633.41,632.21,1.58935638]
[1746809628451,0.31575125,633.41,632.22,1.58935638]
[1746809628652,0.31575125,633.41,632.23,1.58935638]
[1746809628852,0.2664754,633.4,632.24,1.58935638]
[1746809629051,0.3157662,633.38,632.25,1.58935638]
[1746809629255,0.3157662,633.38,632.26,1.58935638]
[1746809629453,0.2664754,633.37,632.27,1.58935638]
[1746809629656,0.31578116,633.35,632.28,1.58935638]
[1746809629955,0.26646556,633.34,632.29,1.58935638]
[1746809630156,0.31579612,633.32,632.3,1.58935638]
[1746809630451,0.31579612,633.32,632.31,1.58935638]
[1746809630755,0.26646556,633.31,632.32,1.58935638]
[1746809630951,0.31581108,633.29,632.33,1.58935638]
[1746809631156,0.26646556,633.28,632.34,1.58935638]
[1746809631351,0.31582604,633.26,632.35,1.58935638]
[1746809631552,0.31582604,633.26,632.36,1.58935638]
[1746809631754,0.31582604,633.26,632.37,1.58935638]
[1746809631959,0.26646556,633.25,632.38,1.58935638]
[1746809632152,0.315841,633.23,632.39,1.58935638]
[1746809632353,0.315841,633.23,632.4,1.58935638]
[1746809632556,0.26646556,633.22,632.41,1.58935638]
[1746809632757,0.31585596,633.2,632.42,1.58935638]
[1746809632957,0.31585596,633.2,632.43,1.58935638]
[1746809633156,0.31585596,633.2,632.44,1.58935638]
[1746809633359,0.31585596,633.2,632.45,1.58935638]
[1746809633557,0.31585596,633.2,632.46,1.59232359]
[1746809633858,0.26630917,633.19,632.47,1.59232359]
[1746809634058,0.26630917,633.19,632.48,1.59232359]
[1746809634358,0.31586594,633.18,632.49,1.59232359]
[1746809634560,0.31586594,633.18,632.5,1.59232359]
[1746809634761,0.537,633.17,632.51,1.59232359]
[1746809634954,0.537,633.17,632.52,1.59232359]
[1746809635156,0.537,633.17,632.53,1.59232359]
[1746809635356,0.26627556,633.16,632.54,0.60112646]
[1746809635659,0.26627556,633.16,632.55,0.60112646]
[1746809635858,0.26627556,633.16,632.56,0.60112646]
[1746809636061,0.31588091,633.15,631.76,0.31657591]
[1746809636258,0.31588091,633.15,631.77,1.5941968]
[1746809636461,0.26627556,633.14,631.78,1.5941968]
[1746809636665,0.31589588,633.12,631.79,1.884695]
[1746809636862,0.31589588,633.12,631.8,1.5941968]
[1746809637058,0.31589588,633.12,631.81,1.5941968]
[1746809637361,0.26627556,633.11,631.82,1.5941968]
[1746809637563,0.31591084,633.09,631.83,1.5941968]
[1746809637762,0.31591084,633.09,631.84,1.5941968]
[1746809637965,0.31591084,633.09,631.85,1.5941968]
[1746809638164,0.26627556,633.08,631.86,1.5941968]
[1746809638357,0.31592582,633.06,631.87,1.884695]
[1746809638558,0.31592582,633.06,631.88,1.5941968]
[1746809638762,0.31592582,633.06,631.89,1.5941968]
[1746809638961,0.31592582,633.06,631.9,1.5941968]
[1746809639159,0.31592582,633.06,631.91,1.5941968]
[1746809639359,0.31592582,633.06,631.92,1.5941968]
[1746809639559,0.31592582,633.06,631.93,1.5941968]
[1746809639762,0.31592582,633.06,631.94,1.884695]
[1746809639964,0.31592582,633.06,631.95,1.59351308]
[1746809640161,0.31592582,633.06,631.96,0.60089537]
[1746809640363,0.31592582,633.06,631.96,0.99261908]
[1746809640566,0.31592582,633.06,631.97,1.88401088]
[1746809640868,0.31592582,633.06,631.97,1.59351268]
[1746809641062,0.31592582,633.06,631.98,1.59351268]
[1746809641265,0.31592582,633.06,631.99,1.59351268]
[1746809641467,0.31592582,633.06,632.0,1.59351268]
[1746809641766,0.31592582,633.06,632.01,1.59341931]
[1746809641966,0.31592582,633.06,632.02,1.59341931]
[1746809642166,0.31592582,633.06,632.03,1.59341931]
[1746809642367,0.31592582,633.06,632.04,1.59341931]
[1746809642562,0.31592582,633.06,632.05,1.59341931]
[1746809642763,0.31592582,633.06,632.06,1.59341931]
[1746809642964,0.31592582,633.06,632.07,1.59341931]
[1746809643166,0.31592582,633.06,632.08,1.59239578]
[1746809643466,0.31592582,633.06,632.09,1.59239578]
[1746809643671,0.31592582,633.06,632.1,1.59239578]
[1746809643869,0.31592582,633.06,632.11,1.59239578]
[1746809644067,0.31592582,633.06,632.12,1.59239578]
[1746809644365,0.31592582,633.06,632.13,1.59239578]
[1746809644563,0.31592582,633.06,632.14,1.59239578]
[1746809644764,0.31592582,633.06,632.15,1.59239578]
[1746809645066,0.31592582,633.06,632.16,1.59239578]
[1746809645267,0.31592582,633.06,632.17,1.59239578]
[1746809645469,0.31592582,633.06,632.18,1.59239578]
[1746809645668,0.31592582,633.06,631.93,0.27497817]
[1746809645669,0.31592582,633.06,632.19,1.59239578]
[1746809645869,0.31592582,633.06,632.2,1.59239578]
[1746809646069,0.31592582,633.06,632.21,1.59239578]
[1746809646268,0.31592582,633.06,632.22,1.59239578]
[1746809646465,0.31592582,633.06,632.23,1.59239578]
[1746809646665,0.31592582,633.06,632.24,1.59239578]
[1746809646867,0.31592582,633.06,632.25,1.59239578]
[1746809647069,0.31592582,633.06,632.26,1.59239578]
[1746809647272,0.31592582,633.06,632.27,1.59239578]
[1746809647472,0.31592582,633.06,632.28,1.59239578]
[1746809647674,0.31592582,633.06,631.93,0.27497817]
[1746809647675,0.31592582,633.06,632.29,1.59239578]
[1746809647873,0.31592582,633.06,632.3,1.59239578]
[1746809648066,0.31592582,633.06,632.31,1.59239578]
[1746809648269,0.31592582,633.06,632.32,1.59239578]
[1746809648575,0.31592582,633.06,632.33,1.59239578]
[1746809648774,0.31592582,633.06,632.34,1.59239578]
[1746809649075,0.31592582,633.06,632.35,1.59239578]
[1746809649269,0.31592582,633.06,632.36,1.59239578]
[1746809649474,0.31592582,633.06,632.37,1.59239578]
[1746809649676,0.31592582,633.06,632.38,1.59239578]
[1746809649970,0.31592582,633.06,632.39,1.59239578]
[1746809650176,0.31592582,633.06,632.4,1.59403457]
[1746809650477,0.418,633.05,632.41,1.59403457]
[1746809650678,0.418,633.05,632.42,1.59403457]
[1746809650878,0.418,633.05,632.43,1.59403457]
[1746809651077,0.418,633.05,632.41,0.415]
[1746809651078,0.418,633.05,632.44,1.59403457]
[1746809651274,0.418,633.05,632.45,1.59403457]
[1746809651472,0.418,633.05,632.46,1.59403457]
[1746809651676,0.418,633.05,632.47,1.59403457]
[1746809651872,0.418,633.05,632.48,1.59403457]
[1746809652075,0.418,633.05,632.49,1.59403457]
[1746809652278,0.418,633.05,632.5,1.59403457]
[1746809652476,0.418,633.05,632.51,1.59403457]
[1746809652678,0.418,633.05,632.52,1.59403457]
[1746809652878,0.418,633.05,632.53,1.59403457]
[1746809653078,0.418,633.05,632.54,1.59403457]
[1746809653377,0.418,633.05,632.55,1.59403457]
[1746809653678,0.418,633.05,632.56,1.59403457]
[1746809653878,0.418,633.05,632.57,1.59403457]
[1746809654078,0.418,633.05,632.58,1.59403457]
[1746809654272,0.418,633.05,632.59,1.59403457]
[1746809654472,0.418,633.05,632.6,1.59403457]
[1746809654777,0.418,633.05,632.61,1.59403457]
[1746809654978,0.418,633.05,632.41,0.415]
[1746809654979,0.418,633.05,632.62,1.59403457]
[1746809655179,0.418,633.05,632.63,1.59403457]
[1746809655374,0.418,633.05,632.64,1.59348567]
[1746809655677,0.418,633.05,632.65,1.59348567]
[1746809655877,0.418,633.05,632.66,1.59348567]
[1746809656078,0.418,633.05,632.67,1.59348567]
[1746809656274,0.418,633.05,632.68,1.59348567]
[1746809656481,0.418,633.05,632.69,1.59348567]
[1746809656672,0.418,633.05,632.7,1.59348567]
[1746809656876,0.418,633.05,632.71,1.59348567]
[1746809657074,0.418,633.05,632.72,1.59348567]
[1746809657277,0.418,633.05,632.73,1.59348567]
[1746809657473,0.418,633.05,632.74,1.59348567]
[1746809657677,0.418,633.05,632.75,1.59348567]
[1746809657874,0.418,633.05,632.76,1.59348567]
[1746809658079,0.418,633.05,632.77,1.59348567]
[1746809658273,0.418,633.05,632.78,1.59348567]
[1746809658473,0.418,633.05,632.79,1.59348567]
[1746809658677,0.418,633.05,632.8,1.59348567]
[1746809658875,0.418,633.05,632.81,1.59348567]
[1746809659078,0.418,633.05,632.82,1.59348567]
[1746809659279,0.418,633.05,632.83,1.59348567]
[1746809659575,0.418,633.05,632.84,1.59348567]
[1746809659783,0.418,633.05,632.85,1.59348567]
[1746809659978,0.418,633.05,632.86,1.59348567]
[1746809660178,0.418,633.05,632.87,1.59348567]
[1746809660379,0.418,633.05,632.88,1.59348567]
[1746809660578,0.418,633.05,632.89,1.59332509]
[1746809660778,0.418,633.05,632.9,1.59332509]
[1746809660972,0.418,633.05,632.91,1.59332509]
[1746809661176,0.418,633.05,632.92,1.59332509]
[1746809661380,0.418,633.05,632.93,1.59332509]
[1746809661579,0.418,633.05,632.94,1.59332509]
[1746809661774,0.418,633.05,632.95,1.59332509]
[1746809661972,0.418,633.05,632.96,1.59332509]
[1746809662174,0.418,633.05,632.97,1.59332509]
[1746809662375,0.418,633.05,632.98,1.59332509]
[1746809662574,0.418,633.05,632.99,1.59332509]
[1746809662880,0.418,633.05,633.0,1.59332509]
[1746809663080,0.418,633.05,633.01,1.59332509]
[1746809663380,0.418,633.05,633.02,1.59332509]
[1746809663579,0.418,633.05,633.03,1.59332509]
[1746809663780,0.418,633.05,633.04,1.59332509]
[1746809667283,0.418,633.05,633.04,1.59141251]
[1746809668983,0.418,633.05,633.04,1.58790776]
[1746809670687,0.418,633.05,633.04,1.58728458]
[1746809672384,0.418,633.05,633.04,1.58652652]
[1746809673285,0.31592582,633.06,633.04,1.58652652]
[1746809673584,0.31592582,633.06,633.05,1.58652652]
[1746809674091,0.31592582,633.06,633.05,0.59777873]
[1746809674291,0.31592582,633.06,633.05,1.58708443]
[1746809675994,0.31592582,633.06,633.05,1.5857843]
[1746809676589,0.31592582,633.06,633.05,1.58487591]
[1746809676890,0.31592582,633.06,633.05,1.90080672]
[1746809677596,0.31592582,633.06,633.05,1.89962198]
[1746809679398,0.31592582,633.06,633.05,1.89849063]
[1746809681097,0.31592582,633.06,633.05,1.89808388]
[1746809682895,0.31592582,633.06,633.05,1.89770442]
[1746809684495,0.31592582,633.06,633.05,1.89640122]
[1746809688110,0.31592582,633.06,633.05,1.89526701]
[1746809691711,0.31592582,633.06,633.05,1.89566662]
[1746809693413,0.31592582,633.06,633.05,1.89603069]
[1746809693611,0.31592582,633.06,633.05,1.89725492]
[1746809697111,0.31592582,633.06,633.05,1.89807247]
[1746809700813,0.31592582,633.06,633.05,1.90136641]
[1746809701216,0.31592582,633.06,633.05,1.90140438]
[1746809702615,0.31592582,633.06,633.05,1.90188422]
[1746809707518,0.31592582,633.06,633.05,1.30541459]
[1746809707715,0.31592582,633.06,633.05,1.90265211]
[1746809708119,0.31592582,633.06,633.05,1.90477394]
[1746809711626,0.31592582,633.06,633.05,1.90550906]
[1746809713429,0.31592582,633.06,633.05,1.30753642]
[1746809713728,0.31592582,633.06,633.05,1.90572269]
[1746809716833,0.31592582,633.06,633.05,1.58979188]
[1746809717134,0.31592582,633.06,633.05,1.59197721]
[1746809718929,0.31592582,633.06,633.05,1.59277133]
[1746809720732,0.31592582,633.06,633.05,1.59373393]
[1746809722529,0.31592582,633.06,633.05,0.99471643]
[1746809722733,0.31592582,633.06,633.05,1.59389727]
[1746809723236,0.31592582,633.06,633.05,0.59918084]
[1746809723637,0.31592582,633.06,632.77,0.531]
[1746809723835,0.31592582,633.06,632.78,1.59382214]
[1746809724035,0.31592582,633.06,632.79,1.59382214]
[1746809724235,0.31592582,633.06,632.8,1.59382214]
[1746809724432,0.31592582,633.06,632.81,1.59393332]
[1746809724631,0.31592582,633.06,632.82,1.59393332]
[1746809724831,0.31592582,633.06,632.83,1.59393332]
[1746809725033,0.31592582,633.06,632.84,1.59393332]
[1746809725234,0.31592582,633.06,632.85,1.59393332]
[1746809725431,0.31592582,633.06,632.86,1.59393332]
[1746809725635,0.31592582,633.06,632.87,0.59916718]
[1746809725833,0.31592582,633.06,632.88,0.59916718]
[1746809726033,0.31592582,633.06,632.89,0.59916718]
[1746809726231,0.31592582,633.06,632.9,0.59916718]
[1746809726441,0.31592582,633.06,632.77,0.531]
[1746809726733,0.31592582,633.06,632.78,1.59238751]
[1746809726934,0.31592582,633.06,632.79,1.59238751]
[1746809727141,0.31592582,633.06,632.8,1.59238751]
[1746809727336,0.31592582,633.06,632.81,1.59238751]
[1746809727537,0.31592582,633.06,632.82,1.59238751]
[1746809727835,0.31592582,633.06,632.83,1.59238751]
[1746809728032,0.31592582,633.06,632.84,1.59238751]
[1746809728237,0.31592582,633.06,632.85,0.59838506]
[1746809728437,0.31592582,633.06,632.86,0.59838506]
[1746809728737,0.31592582,633.06,632.87,0.59838506]
[1746809728931,0.31592582,633.06,632.88,0.59838506]
[1746809729133,0.31592582,633.06,632.77,0.531]
[1746809729333,0.31592582,633.06,632.78,1.5914018]
[1746809729531,0.31592582,633.06,632.79,1.5914018]
[1746809729734,0.31592582,633.06,632.8,1.5914018]
[1746809729937,0.31592582,633.06,632.81,0.99319495]
[1746809730139,0.31592582,633.06,632.82,1.59122607]
[1746809730439,0.31592582,633.06,632.83,1.59122607]
[1746809730639,0.31592582,633.06,632.84,0.59803112]
[1746809730840,0.31592582,633.06,632.85,0.59786856]
[1746809731040,0.31592582,633.06,632.86,0.59786856]
[1746809731241,0.31592582,633.06,632.77,0.531]
[1746809731446,0.31592582,633.06,632.78,1.59040224]
[1746809731642,0.31592582,633.06,632.79,1.59040224]
[1746809731842,0.31592582,633.06,632.8,1.59040224]
[1746809732045,0.31592582,633.06,632.81,1.59040224]
[1746809732242,0.31592582,633.06,632.82,1.59040224]
[1746809732442,0.31592582,633.06,632.83,1.59040224]
[1746809732637,0.31592582,633.06,632.84,1.59040224]
[1746809732844,0.31592582,633.06,632.85,1.59040224]
[1746809733138,0.31592582,633.06,632.86,1.59040224]
[1746809733343,0.31592582,633.06,632.87,1.59040224]
[1746809733548,0.31592582,633.06,632.88,1.59040224]
[1746809733842,0.31592582,633.06,632.89,1.59040224]
[1746809734042,0.31592582,633.06,632.9,1.59040224]
[1746809734242,0.31592582,633.06,632.91,1.59040224]
[1746809734443,0.31592582,633.06,632.92,1.59040224]
[1746809734639,0.31592582,633.06,632.93,1.59040224]
[1746809734838,0.31592582,633.06,632.77,0.531]
[1746809734839,0.31592582,633.06,632.94,1.59040224]
[1746809735043,0.31592582,633.06,632.95,1.59040224]
[1746809735244,0.31592582,633.06,632.96,1.59040224]
[1746809735546,0.31592582,633.06,632.97,1.59040224]
[1746809735744,0.31592582,633.06,632.98,1.59011734]
[1746809735943,0.31592582,633.06,632.99,1.59011734]
[1746809736139,0.31592582,633.06,633.0,1.59011734]
[1746809736340,0.31592582,633.06,633.01,1.59011734]
[1746809736539,0.31592582,633.06,633.02,1.59011734]
[1746809736743,0.31592582,633.06,633.03,1.59011734]
[1746809736940,0.31592582,633.06,633.04,1.59011734]
[1746809737144,0.31592582,633.06,633.05,1.59011734]
[1746809737447,0.31592582,633.06,633.05,0.59754644]
[1746809737641,0.31592582,633.06,633.05,1.58942743]
[1746809738250,0.31592582,633.06,632.77,0.531]
[1746809750451,0.31592582,633.06,632.78,0.98958412]
[1746809750650,0.31592582,633.06,632.79,1.58604896]
[1746809750845,0.31592582,633.06,632.8,1.58604896]
[1746809751147,0.31592582,633.06,632.81,1.58604896]
[1746809751348,0.31592582,633.06,632.82,1.58604896]
[1746809751549,0.31592582,633.06,632.83,1.58604896]
[1746809751749,0.31592582,633.06,632.84,1.58604896]
[1746809751949,0.31592582,633.06,632.85,1.58604896]
[1746809752148,0.31592582,633.06,632.86,1.58604896]
[1746809752346,0.31592582,633.06,632.87,0.98958412]
[1746809752545,0.31592582,633.06,632.77,0.531]
[1746809752750,0.31592582,633.06,632.78,1.58589915]
[1746809753046,0.31592582,633.06,632.79,1.58589915]
[1746809753249,0.31592582,633.06,632.8,1.58589915]
[1746809753450,0.31592582,633.06,632.81,1.58589915]
[1746809753650,0.31592582,633.06,632.82,1.58589915]
[1746809753946,0.31592582,633.06,632.83,1.58589915]
[1746809754149,0.31592582,633.06,632.84,1.58589915]
[1746809754351,0.31592582,633.06,632.85,1.58589915]
[1746809754553,0.31592582,633.06,632.86,0.98944497]
[1746809754752,0.31592582,633.06,632.77,0.531]
[1746809755052,0.31592582,633.06,632.78,1.58603703]
[1746809755253,0.31592582,633.06,632.79,1.58603703]
[1746809755446,0.31592582,633.06,632.8,1.58603703]
[1746809755648,0.31592582,633.06,632.81,1.58608553]
[1746809755952,0.31592582,633.06,632.82,1.58608553]
[1746809756154,0.31592582,633.06,632.83,1.58608553]
[1746809756355,0.31592582,633.06,632.84,1.58608553]
[1746809756654,0.31592582,633.06,632.77,0.531]
[1746809760161,0.31592582,633.06,632.78,1.58637548]
[1746809760461,0.31592582,633.06,632.79,1.5863755]
[1746809760659,0.31592582,633.06,632.8,1.5863755]
[1746809760957,0.31592582,633.06,632.81,1.5863755]
[1746809761161,0.31592582,633.06,632.77,0.531]
[1746809761360,0.31592582,633.06,632.78,1.58631274]
[1746809761562,0.31592582,633.06,632.79,1.58631274]
[1746809761858,0.31592582,633.06,632.8,1.58631274]
[1746809762060,0.31592582,633.06,632.81,1.58631274]
[1746809762261,0.31592582,633.06,632.77,0.531]
[1746809762456,0.31592582,633.06,632.78,1.58646308]
[1746809762661,0.31592582,633.06,632.79,1.58646308]
[1746809762862,0.31592582,633.06,632.8,1.58646308]
[1746809763065,0.31592582,633.06,632.81,1.58649774]
[1746809763263,0.31592582,633.06,632.77,0.531]
[1746809763457,0.31592582,633.06,632.78,1.586698]
[1746809763659,0.31592582,633.06,632.79,1.586698]
[1746809763864,0.31592582,633.06,632.8,1.586698]
[1746809764055,0.31592582,633.06,632.81,1.586698]
[1746809764257,0.31592582,633.06,632.77,0.531]
[1746809768465,0.31592582,633.06,632.78,0.59759439]
[1746809768661,0.31592582,633.06,632.77,0.531]
[1746809769064,0.31592582,633.06,632.78,0.59759521]
[1746809769364,0.31592582,633.06,632.77,0.531]
[1746809769563,0.31592582,633.06,632.78,0.59783893]
[1746809769763,0.31592582,633.06,632.77,0.531]
[1746809769963,0.31592582,633.06,632.78,0.59783819]
[1746809770163,0.31592582,633.06,632.79,0.59783819]
[1746809770364,0.31592582,633.06,632.77,0.531]
[1746809770559,0.31592582,633.06,632.78,0.59791265]
[1746809770762,0.31592582,633.06,632.79,0.59791265]
[1746809770959,0.31592582,633.06,632.77,0.531]
[1746809771160,0.31592582,633.06,632.78,0.59810116]
[1746809771463,0.31592582,633.06,632.79,0.59810116]
[1746809771660,0.31592582,633.06,632.8,0.59830334]
[1746809771861,0.31592582,633.06,632.77,0.531]
[1746809772160,0.31592582,633.06,632.78,0.59829794]
[1746809772360,0.31592582,633.06,632.79,0.59829794]
[1746809772559,0.31592582,633.06,632.77,0.531]
[1746809775166,0.31592582,633.06,632.78,0.59860854]
[1746809775467,0.31592582,633.06,632.77,0.531]
[1746809775667,0.31592582,633.06,632.78,0.59871929]
[1746809775862,0.31592582,633.06,632.77,0.531]
[1746809776065,0.31592582,633.06,632.78,0.59871823]
[1746809776263,0.31592582,633.06,632.79,0.59871823]
[1746809776467,0.31592582,633.06,632.77,0.531]
[1746809776665,0.31592582,633.06,632.78,0.59884413]
[1746809776872,0.31592582,633.06,632.79,0.59884413]
[1746809777068,0.31592582,633.06,632.8,0.59883086]
[1746809777263,0.31592582,633.06,632.81,0.59883086]
[1746809777564,0.31592582,633.06,632.82,0.59883086]
[1746809777764,0.31592582,633.06,632.83,0.59883086]
[1746809777968,0.31592582,633.06,632.84,0.59883086]
[1746809778267,0.31592582,633.06,632.77,0.531]
[1746809778570,0.31592582,633.06,632.78,1.59164499]
[1746809778871,0.31592582,633.06,632.79,1.59164499]
[1746809779072,0.31592582,633.06,632.8,0.59890142]
[1746809779369,0.31592582,633.06,632.81,0.59890142]
[1746809779564,0.31592582,633.06,632.82,0.59890142]
[1746809779767,0.31592582,633.06,632.83,0.59890142]
[1746809779971,0.31592582,633.06,632.84,0.59890142]
[1746809780270,0.31592582,633.06,632.85,0.5989775]
[1746809780468,0.31592582,633.06,632.77,0.531]
[1746809780669,0.31593081,633.05,632.77,0.531]
[1746809781065,0.31593081,633.05,631.71,0.99497732]
[1746809781264,0.31593081,633.05,631.77,1.90920791]
[1746809781469,0.31593081,633.05,631.78,1.9092029]
[1746809781771,0.31593081,633.05,631.79,1.90919789]
[1746809782071,0.31593081,633.05,631.8,1.88310461]
[1746809782266,0.31593081,633.05,631.81,1.59263701]
[1746809782464,0.31593081,633.05,631.82,1.88304994]
[1746809782666,0.31593081,633.05,631.83,1.59258234]
[1746809782870,0.31593081,633.05,631.84,1.88304994]
[1746809783068,0.31593081,633.05,631.85,1.59258234]
[1746809783270,0.31593081,633.05,631.86,1.5913567]
[1746809783471,0.31593081,633.05,631.87,1.8818243]
[1746809783672,0.31593081,633.05,631.88,1.5913567]
[1746809783974,0.31593081,633.05,631.89,1.8818243]
[1746809784174,0.31593081,633.05,631.9,1.5913567]
[1746809784373,0.618,633.04,631.91,1.5913567]
[1746809784574,0.618,633.04,631.92,1.5913567]
[1746809784773,0.618,633.04,631.93,1.5913567]
[1746809785071,0.618,633.04,631.94,0.99235362]
[1746809785271,0.618,633.04,631.95,1.59131371]
[1746809785474,0.618,633.04,631.96,1.59131371]
[1746809785670,0.618,633.04,631.97,1.59131371]
[1746809785873,0.618,633.04,631.98,1.59131371]
[1746809786069,0.618,633.04,631.82,0.31654585]
[1746809786070,0.618,633.04,631.99,1.59131371]
[1746809786271,0.618,633.04,632.0,1.59131371]
[1746809786470,0.618,633.04,632.01,1.59131371]